Cogmind - Beta 11 X8 @@@ ROGUE MODE // 2021.12.08 @ 17:00:06 Player: btmk16 Result: Destroyed by D-53 Grenadier with Mini Grenade Launcher Performance ------------- Evolutions (0) 0 Regions Visited (2) 400 Robots Destroyed (17) 85 Value Destroyed (324) 324 Prototype IDs (0) 0 Alien Tech Used (0) 0 Bonus (0) 0 TOTAL SCORE: 809 Bonus ------- None Cogmind --------- Core Integrity 0/250 Matter 68/300 Energy 90/100 System Corruption 0% Temperature Cool (0) Movement Core (400) Ox7 Location -10/Mines Parts ------- > --- POWER (1) -------- (None) > --- PROPULSION (2) --- Wheel > --- UTILITY (2) ------ Large Storage Unit > --- WEAPON (2) ------- Assault Rifle > --- INVENTORY (15) --- Ion Engine Ion Engine Improved Ion Engine Improved Ion Engine Improved Ion Engine Wheel Wheel Compact Wheel Light Assault Rifle Light Assault Rifle EMP Blaster EMP Blaster Grenade Launcher Peak State ------------ > --- POWER ------------ Improved Ion Engine > --- PROPULSION ------- Light Treads Light Treads > --- UTILITY ---------- Large Storage Unit Terrain Scanner > --- WEAPON ----------- Improved Light Cannon Improved Light Cannon > --- INVENTORY -------- Ion Engine Ion Engine Improved Ion Engine Improved Ion Engine Improved Ion Engine Aluminum Leg Aluminum Leg Wheel Wheel Compact Wheel Assault Rifle Light Assault Rifle Light Assault Rifle EMP Blaster EMP Blaster [Rating: 12] Favorites ----------- Power Improved Ion Engine Engine Improved Ion Engine Propulsion Light Treads Treads Light Treads Leg Aluminum Leg Wheel Wheel Utility Terrain Scanner Device Terrain Scanner Storage Large Storage Unit Weapon Improved Light Cannon Ballistic Gun Light Assault Rifle Ballistic Cannon Improved Light Cannon Launcher Grenade Launcher Build | -11 -10 -10 ------- Run | Scr Mat Min Slots Evolved . | . . . Power . | . . . Propulsion . | . . . Utility . | . . . Weapon . | . . . Parts Attached 15 | . 9 6 Power 1 | . 1 . Engine 1 | . 1 . Core . | . . . Reactor . | . . . Propulsion 3 | . 2 1 Treads 2 | . 2 . Leg . | . . . Wheel 1 | . . 1 Hover . | . . . Flight . | . . . Utility 2 | . 2 . Device 1 | . 1 . Storage 1 | . 1 . Processor . | . . . Hackware . | . . . Protection . | . . . Artifact . | . . . Weapon 9 | . 4 5 Energy Gun . | . . . Energy Cannon . | . . . Ballistic Gun 2 | . 1 1 Ballistic Cannon 4 | . 2 2 Launcher 3 | . 1 2 Special Weapon . | . . . Impact Weapon . | . . . Slashing Weapon . | . . . Piercing Weapon . | . . . Special Melee Weapon . | . . . Unidentified Prototypes . | . . . Parts Lost 6 | . . 6 Power 1 | . . 1 Propulsion 2 | . . 2 Utility 1 | . . 1 Weapon 2 | . . 2 Highest Loss Streak 5 | . . 5 Average Slot Usage (%) 98 | . 99 96 Engine 13 | . 14 12 Treads 21 | . 21 22 Leg 5 | . 7 . Device 13 | . 13 14 Storage 14 | . 14 14 Ballistic Gun 6 | . 6 7 Ballistic Cannon 19 | . 21 12 Launcher 1 | . . 6 Naked Turns . | . . . Heaviest Build 36 | 12 36 36 Greatest Support 40 | 20 40 40 Greatest Overweight (x) 3 | . 1 3 Average Overweight (x) . | . . 1 Largest Inventory Capacity 15 | . 15 15 Average Capacity 13 | . 13 15 Most Carried 15 | . 15 15 Average Carried 13 | . 12 14 Final Capacity 15 | 8 15 15 Final Carried 15 | 6 15 13 Class Distribution -------------------- 100% | Mutant Dominant Class ---------------- Mutant | -10/Materials Mutant | -10/Mines Resources | -11 -10 -10 ----------- Run | Scr Mat Min Matter Collected 724 | 173 543 8 Remotely . | . . . Salvage Created 307 | . 278 29 Parts 25 | . 25 . Haulers Intercepted . | . . . Recyclers Shooed . | . . . Parts Field Recycled . | . . . Retrieved Matter . | . . . Parts Self-Destructed . | . . . Prevented . | . . . Kills | -11 -10 -10 ------- Run | Scr Mat Min Combat Hostiles Destroyed 20 | . 10 10 Cannons 8 | . 7 1 AOE 12 | . 3 9 Classes Destroyed 7 | . 6 1 Worker 1 | . 1 . Builder 4 | . 4 . Recycler 1 | . 1 . Operator 1 | . 1 . Swarmer 3 | . 3 . Grunt 7 | . 7 . Assembled 10 | . . 10 Best Kill Streak 10 | . 4 10 Combat Bots Only 10 | . 3 10 Max Kills in Single Turn 4 | . 2 4 Gunslinging . | . . . Exploded 4 | . 2 4 Melee . | . . . Uniques/NPCs Destroyed . | . . . Combat | -11 -10 -10 -------- Run | Scr Mat Min Damage Taken 1126 | . 277 849 Core 250 | . 15 235 Absorbed by Shields . | . . . Core Remaining (%) 100 | 100 . . Volleys Fired 73 | . 56 17 Largest 2 | . 2 2 Hottest 78 | . 78 78 Shots Fired 146 | . 112 34 Gun 15 | . 3 12 Cannon 118 | . 106 12 Launcher 13 | . 3 10 Special . | . . . Kinetic 133 | . 109 24 Thermal . | . . . Explosive 13 | . 3 10 Electromagnetic . | . . . Robot Hit Streak 15 | . 15 10 Robot Miss Streak 4 | . 3 4 Penetration Max . | . . . Secondary Targets . | . . . Shots Hit Robots 48 | . 36 12 Core Hits 36 | . 18 18 Critical Kills . | . . . Critical Parts Destroyed . | . . . Critical Strikes 2 | . 2 . Blast 2 | . 2 . Melee Attacks . | . . . Impact . | . . . Slashing . | . . . Piercing . | . . . Sneak Attacks . | . . . Combat Hostiles . | . . . Follow-up Attacks . | . . . Damage Inflicted 1699 | . 961 738 Guns 59 | . . 59 Cannons 836 | . 753 83 Explosions 798 | . 202 596 Melee . | . . . Ramming 6 | . 6 . Kinetic 895 | . 753 142 Thermal . | . . . Explosive 798 | . 202 596 Electromagnetic . | . . . Impact . | . . . Slashing . | . . . Piercing . | . . . Highest Corruption . | . . . Average Corruption . | . . . Corruption Purged . | . . . Overload Shots . | . . . Overflow Damage 27 | . 23 4 Projectiles 23 | . 23 . Explosions 4 | . . 4 Melee . | . . . Knockbacks 10 | . 9 1 Impact . | . . . Kinetic 9 | . 8 1 Secondary 1 | . 1 . Self-Inflicted Damage 145 | . 48 97 Shots 6 | . 2 4 Rammed 1 | . 1 . Targets Rammed 1 | . 1 . Kicked . | . . . Crushed . | . . . Highest Temperature 293 | . 293 70 Average Temperature 103 | . 112 34 Received Heat Transfer 125 | . 105 20 Effects 1 | . 1 . Energy Bleed 1 | . 1 . Siege Activations . | . . . Robots Corrupted . | . . . Combat Hostiles . | . . . Parts Fried . | . . . Impact Corruptions . | . . . Robots Melted . | . . . Combat Hostiles . | . . . Parts Melted . | . . . Heat Transferred . | . . . Parts Sabotaged . | . . . Parts Stolen . | . . . Parts Stripped . | . . . Power Chain Reactions . | . . . Missiles Intercepted . | . . . Alert | -11 -10 -10 ------- Run | Scr Mat Min Peak Influence 206 | . 206 54 Initial 54 | . . 54 Average 68 | . 72 48 Maximum Alert Level 1 | . 1 . Low Security (%) 98 | . 97 100 Level 1 1 | . 2 . Level 2 . | . . . Level 3 . | . . . Level 4 . | . . . Level 5 . | . . . High Security . | . . . Max Security . | . . . Squads Dispatched 2 | . 2 . Investigation 2 | . 2 . Extermination . | . . . Reinforcement . | . . . Assault . | . . . Garrison . | . . . Intercept . | . . . Construction Impeded . | . . . Haulers Reinforced . | . . . Active Scanning Responses . | . . . Cargo Convoy Interrupts . | . . . Stealth | -11 -10 -10 --------- Run | Scr Mat Min Distress Signals . | . . . Communications Jammed . | . . . Distress Signals . | . . . Times Spotted 29 | . 15 14 Peak Tracking Total 8 | . 3 8 Tactical Retreats 1 | . . 1 Traps | -11 -10 -10 ------- Run | Scr Mat Min Traps Triggered 1 | . 1 . Indirectly . | . . . Trap Hack Attempts . | . . . Triggered . | . . . Disarmed . | . . . Reprogrammed . | . . . Reused . | . . . Traps Extracted . | . . . Installed . | . . . Triggered . | . . . Machines | -11 -10 -10 ---------- Run | Scr Mat Min Machines Disabled . | . . . Max in Single Turn . | . . . Machines Sabotaged . | . . . Garrisons Compromised . | . . . Overloaded Fab Kills . | . . . Hacking | -11 -10 -10 --------- Run | Scr Mat Min Machines Accessed 3 | . 3 . Terminals 2 | . 2 . Fabricators . | . . . Repair Stations . | . . . Recycling Units 1 | . 1 . Scanalyzers . | . . . Garrison Access . | . . . Total Hacks 8 | . 8 . Successful 6 | . 6 . Failed 1 | . 1 . Catastrophic . | . . . Database Lockouts 1 | . 1 . Manual 5 | . 5 . Terminals 5 | . 5 . Fabricators . | . . . Repair Stations . | . . . Recycling Units 3 | . 3 . Scanalyzers . | . . . Garrison Access . | . . . Terminal Hacks 3 | . 3 . Record 1 | . 1 . Robot Analysis 1 | . 1 . Alert Level 1 | . 1 . Fabricator Hacks . | . . . Repair Station Hacks . | . . . Recycling Unit Hacks 1 | . 1 . Retrieve Components 1 | . 1 . Scanalyzer . | . . . Garrison Access Hacks . | . . . Unauthorized Hacks 2 | . 2 . Terminals 1 | . 1 . Track 1 | . 1 . Fabricators . | . . . Repair Stations . | . . . Recycling Units 1 | . 1 . Tunnel 1 | . 1 . Scanalyzers . | . . . Garrison Access . | . . . Data Cores Recovered 1 | . 1 . Used . | . . . Hacking Detections 1 | . 1 . Full Trace Events . | . . . Feedback Events . | . . . Feedback Blocked . | . . . Robot Schematics Acquired . | . . . Robots Built . | . . . Authchips . | . . . Time . | . . . Total Robot Build Rating . | . . . Part Schematics Acquired . | . . . Parts Built . | . . . Authchips . | . . . Time . | . . . Total Part Build Rating . | . . . Parts Repaired . | . . . Time . | . . . Parts Recycled . | . . . Recycled Matter . | . . . Retrieved Matter . | . . . Retrieved Components 1 | . 1 . Parts Scanalyzed . | . . . Part Schematics Acquired . | . . . Parts Damaged . | . . . Bothacking | -11 -10 -10 ------------ Run | Scr Mat Min Used RIF Installer . | . . . Robots Hacked . | . . . Non-combat . | . . . Combat . | . . . Robot Hacks Applied . | . . . Relay Couplers Released . | . . . Fabnet Peak Effective % . | . . . Robots Rewired . | . . . Allies Hacked . | . . . Hacks Repelled . | . . . Allies | -11 -10 -10 -------- Run | Scr Mat Min Total Allies . | . . . Largest Group . | . . . Highest-Rated Group . | . . . Highest-Rated Ally . | . . . Total Orders . | . . . Ally Attacks . | . . . Total Damage . | . . . Kills . | . . . Allies Corrupted . | . . . Allies Melted . | . . . Intel | -11 -10 -10 ------- Run | Scr Mat Min Robot Analysis Total 1 | . 1 . Derelict Logs Recovered . | . . . Drone Launches . | . . . Drone Recoveries . | . . . Exploration | -11 -10 -10 ------------- Run | Scr Mat Min Turns Passed 814 | . 684 130 Spaces Moved 375 | 1 324 50 Core . | . . . Treads 236 | . 208 28 Legs 117 | 1 116 . Wheels 22 | . . 22 Hover . | . . . Flight . | . . . Fastest Speed 120 | 120 120 125 Average Speed 149 | 120 150 146 Slowest Speed 240 | 120 190 240 Overloaded Moves . | . . . Propulsion Burnouts . | . . . Robots Hopped . | . . . Cave-ins Triggered . | . . . Exploration Rate (%) 19 | 2 40 15 Regions Visited 2 Branch Regions 1 Pre-discovered Areas 1 | . 1 . Known Exits Taken . | . . . Unknown Exits Taken 2 | 1 1 . Scrap Searched . | . . . Spaces Dug 12 | . 12 . Terrain Destroyed 101 | . 36 65 Melee . | . . . Projectile 22 | . 18 4 AOE 79 | . 18 61 Terrain Rammed . | . . . Walls Destroyed . | . . . Machines Disabled . | . . . Actions | -11 -10 -10 --------- Run | Scr Mat Min Total 483 | . 410 73 Wait 4 | . 4 . Move 373 | . 323 50 Hop . | . . . Pick Up 9 | . 9 . Fast Attach 3 | . 3 . Attach 4 | . 2 2 Detach 4 | . 4 . Swap 8 | . 4 4 Drop 4 | . 4 . Fire 73 | . 56 17 Melee . | . . . Ram . | . . . Kick . | . . . Crush 1 | . 1 . Escape Stasis . | . . . Rewire . | . . . Trap . | . . . Miscellaneous . | . . . Route ------- -11/Scrapyard -10/Materials (discovered 2 exits: [*Mat] / [*Min]) -10/Mines History --------- Turn | Location | Event 1 | -11/Scrapyard | Discovered new exit (range 0) 1 | -11/Scrapyard | Entered Materials 93 | -10/Materials | Central database locked down 317 | -10/Materials | Build established: Mutant 663 | -10/Materials | Discovered new exit (range 7) 682 | -10/Materials | Discovered new exit (range 8) 685 | -10/Materials | Entered Mines 706 | -10/Mines | Assembled infested the area 711 | -10/Mines | Assisted by a Guerilla fighting off Assembled 757 | -10/Mines | Core integrity fell below 50% 800 | -10/Mines | Destroyed 10 combat bots 812 | -10/Mines | Core integrity fell below 20% 815 | -10/Mines | Destroyed by D-53 Grenadier with Mini Grenade Launcher Last Messages --------------- 00739_ as-64937 destroyed. 00740_ The unstable cave ceiling collapses. 00747_ as-56336 destroyed. 00755_ The unstable cave ceiling collapses. 00757_ as-05832 destroyed. 00762_ The unstable cave ceiling collapses. 00766_ Lgt. Treads destroyed. 00766_ as-30650 destroyed. 00766_ as-67000 destroyed. 00771_ The unstable cave ceiling collapses. 00776_ Acquired 8 matter. 00779_ The unstable cave ceiling collapses. 00779_ as-80985 destroyed. 00781_ The unstable cave ceiling collapses. 00805_ Imp. Ion Engine destroyed. 00809_ Imp. Light Cannon destroyed. 00813_ Lgt. Treads destroyed. 00815_ The unstable cave ceiling collapses. 00815_ Imp. Light Cannon destroyed. 00815_ Terrain Scanner destroyed. Map ----- +----------------------------------------------------+ | ???????????????????????????????????? | | ???????????????????????????????????? | | ???????????????????????????????????? | | ???????????????????????????????????? | | ???????????????????????????????????? | | ???????????????????????????????????? | | ???????????????????????????????????? | | ???????????????????????????????????? | | ??????????????????????????########?? | | ??????????????????????????# #?? | | ??????????????????????????#""" #?? | | ??????????????????????????#""" #?? | | ?????????????????##???????#""" #?? | | ???????????????? ??#?# #?? | | ??????????????# ???## #?? | | ??????????????? # ????# #?? | | ???????????????? ##??# #?? | | ?????????????#??# ##??# #?? | | ???????????????## ##### #?? | | ???????????????# ## ##### ##?? | | ???????????????# % d% #### #??? | | ???????????????# % * ## #??? | | ??????????? ???## #??? | | ??????? ????????# d ##?? | | ?????????????????# # #?#? | | ??????????????#??# @ ##?? | | ??????????"?????## # ##?? | | ?????????????????# ##??? | | ?????????????????# #???? | | ????????????####?# ###??? | | ???????????## ### * = #????? | | ??????????## ####????? | | ?????????## ##????#?#? | | ?????????# #????????? | | ?????????# ####?#??????? | | ?????????# ###?#???????#? | | ?????????## ##?????#??????? | | ????????#?## ##????????????? | | ???????????## ##??#??????????? | | ????????????### ####??????????????? | | ??????????#???###??????????#???????? | | ????????#????????##????????????????? | | ???????????????????????????????????? | | | | | | | | | | | | | | | +----------------------------------------------------+ Best States ------------- Heat Dissipation 25 Energy Generation 12 Energy Capacity 265 Matter Stores 300 Matter Capacity 300 Sight Range 16 Terrain Scan Range 14 Terrain Scan Density 10 Evasion (%) 55 Recoil Reduction 2 Item Schematics ----------------- None Robot Schematics ------------------ None Fabricated ------------ Nothing Alien Tech Used ----------------- None Achievements -------------- None Challenges ------------ None Game ------ Seed GravmagFactoryCharger Manual? 0 Play Time 00:08:53 Cumulative 174.6 hours Start 2021.12.08 @ 16:52:44 End 2021.12.08 @ 17:00:06 Sessions 1 Manual Loads 0 Difficulty Rogue Special Mode None Game No. 238 Rogue 238 Adventurer 0 Explorer 0 Win Type - Total 2 Types 2/0/0/0/0/0/0/0/0 Lore% 59 Gallery% 72 Achievement% 51 Wizard Run 0 Options --------- ASCII 0 Keyboard 1 Movement Vi Keybinds 0 Fullscreen 1 Font 16/Cog Map View 76x50 Tactical HUD 1 Map Filters NONE Filters NONE Steam 1 RUN: 67a272cd-bde2-4c55-8ea3-a8975f98901d